bitfinex/quotes_SOLUSD_20251006
["timestamp","ask_amount","ask_price","bid_price","bid_amount"]
[1759715267150,0.7,230.96,230.91,1.36175821]
[1759715267477,1.36175821,230.94,230.86,0.69]
[1759715267644,32.1,230.93,230.87,1.36175821]
[1759715269376,32.1,230.93,230.83,20.8]
[1759715269671,32.1,230.93,230.87,1.36175821]
[1759715269672,0.68,230.92,230.87,1.36175821]
[1759715269847,0.68,230.92,230.88,1.36175821]
[1759715270048,0.68,230.92,230.87,1.36175821]
[1759715270270,31.42,230.93,230.87,1.36175821]
[1759715270575,0.68,230.91,230.86,1.36175821]
[1759715270956,31.42,230.93,230.87,2.07175821]
[1759715271163,31.42,230.92,230.89,1.36175821]
[1759715271457,31.42,230.91,230.89,1.36175821]
[1759715271657,0.68,230.9,230.86,1.36175821]
[1759715271864,31.42,230.91,230.83,25.84217583]
[1759715271865,0.68,230.89,230.85,1.36175821]
[1759715272067,0.68,230.88,230.85,1.36175821]
[1759715272569,31.42,230.91,230.85,1.36175821]
[1759715272765,0.68,230.9,230.85,1.36175821]
[1759715272960,31.42,230.91,230.84,1.36175821]
[1759715273165,0.68,230.89,230.84,1.36175821]
[1759715273556,0.68,230.89,230.84,2.07175821]
[1759715274475,36.43070001,230.91,230.84,2.07175821]
[1759715276078,32.1,230.91,230.84,2.07175821]
[1759715276293,0.68,230.94,230.89,1.36175821]
[1759715276490,31.42,230.93,230.89,1.36175821]
[1759715276671,31.42,230.93,230.89,2.07175821]
[1759715277381,31.42,230.93,230.89,0.71]
[1759715277688,31.42,230.93,230.88,5.69299561]
[1759715277876,31.42,230.93,230.89,0.71]
[1759715278070,0.68,230.95,230.89,0.71]
[1759715278264,31.42,230.94,230.89,0.71]
[1759715278573,31.42,230.94,230.9,0.71]
[1759715278781,32.1,230.94,230.88,6.40299561]
[1759715278968,32.78175821,230.94,230.86,1.36175821]
[1759715279182,0.68,230.93,230.86,1.36175821]
[1759715279381,0.68,230.93,230.86,2.07175821]
[1759715280776,31.42,230.92,230.86,2.07175821]
[1759715280977,0.68,230.93,230.86,2.07175821]
[1759715281289,31.42,230.91,230.86,6.40325208]
[1759715281493,1.36175821,230.89,230.82,4.33228438]
[1759715281696,1.36175821,230.89,230.83,0.71]
[1759715282185,2.04175821,230.9,230.83,0.71]
[1759715282494,31.42,230.89,230.84,4.33200485]
[1759715282690,2.04175821,230.9,230.84,4.33200485]
[1759715282898,31.42,230.89,230.84,5.04200485]
[1759715283271,2.04175821,230.9,230.84,5.04200485]
[1759715283596,31.42,230.89,230.84,5.04200485]
[1759715283998,2.04175821,230.9,230.84,5.04200485]
[1759715284180,31.42,230.88,230.84,5.04200485]
[1759715284375,0.68,230.94,230.86,1.36175821]
[1759715284693,31.42,230.93,230.87,0.71]
[1759715284896,31.42,230.93,230.87,2.07175821]
[1759715285271,0.68,230.92,230.86,80.6]
[1759715285490,0.68,230.92,230.81,10.87647521]
[1759715285491,1.36175821,230.9,230.82,22.16175821]
[1759715285697,2.04175821,230.9,230.82,22.87175821]
[1759715286096,2.04175821,230.9,230.82,0.71]
[1759715286303,1.36175821,230.88,230.82,0.71]
[1759715286600,31.42,230.87,230.82,0.71]
[1759715286776,31.42,230.87,230.83,0.71]
[1759715288390,31.42,230.87,230.83,5.69390547]
[1759715288598,25.13032802,230.93,230.86,1.36175821]
[1759715288599,0.68,230.92,230.86,1.36175821]
[1759715288775,31.42,230.91,230.86,1.36175821]
[1759715288975,32.1,230.91,230.85,1.36175821]
[1759715289799,32.1,230.91,230.85,5.69347299]
[1759715289998,20.8,230.93,230.86,0.71]
[1759715290175,31.42,230.92,230.86,0.71]
[1759715291299,31.42,230.92,230.86,2.07175821]
[1759715291808,0.68,230.97,230.88,1.36175821]
[1759715291985,32.78175821,230.96,230.89,0.71]
[1759715292174,33.46175821,230.96,230.89,0.71]
[1759715292691,31.42,230.96,230.92,1.36175821]
[1759715292885,31.42,230.96,230.93,0.71]
[1759715293411,31.42,230.99,230.94,2.07175821]
[1759715293715,0.1,231.02,230.98,10.87647521]
[1759715294001,0.1,231.02,231.01,1.36175821]
[1759715294380,0.1,231.02,231.01,2.07175821]
[1759715294579,0.1,231.02,231.01,12.94823342]
[1759715295486,0.1,231.09,231.02,10.87647521]
[1759715295685,0.1,231.09,231.07,1.36175821]
[1759715296007,0.1,231.09,231.08,4.32750562]
[1759715296880,0.1,231.09,231.08,6.39926383]
[1759715297079,0.1,231.09,231.08,5.68926383]
[1759715297497,0.1,231.09,231.08,6.38926383]
[1759715297675,0.81,231.09,231.01,0.7]
[1759715297873,0.1,231.09,231.05,1.36175821]
[1759715298279,0.1,231.09,231.05,2.06175821]
[1759715298779,0.1,231.09,231.06,1.36175821]
[1759715299515,0.71,231.08,231.0,25.12888102]
[1759715299703,1.36175821,231.05,230.99,10.87647521]
[1759715299899,0.71,231.05,231.0,4.32900432]
[1759715300202,0.71,231.04,231.0,4.32900432]
[1759715300405,0.71,231.07,231.01,0.7]
[1759715300583,32.11,231.07,231.01,2.06175821]
[1759715301182,34.67032512,231.07,231.0,3.27032512]
[1759715301388,3.27032512,231.05,230.98,24.07032512]
[1759715301582,3.27032512,231.03,230.97,20.8]
[1759715302100,0.71,231.04,230.97,20.8]
[1759715302101,3.27032512,231.04,230.97,28.39974329]
[1759715302297,0.71,231.03,230.97,28.39974329]
[1759715302500,0.71,231.03,230.97,7.59974329]
[1759715302697,3.98032512,231.03,230.96,0.7]
[1759715302886,31.4,231.07,230.94,18.47687577]
[1759715302887,3.27032512,231.01,230.94,18.47687577]
[1759715303087,3.98032512,231.02,230.95,3.27032512]
[1759715303600,0.71,231.02,230.97,3.27032512]
[1759715303806,0.71,231.01,230.97,3.27032512]
[1759715304804,0.71,231.0,230.95,3.27032512]
[1759715305189,0.71,231.03,230.95,3.27032512]
[1759715305393,52.18,231.02,230.97,3.27032512]
[1759715305606,0.71,231.01,230.97,3.27032512]
[1759715305812,52.18,231.02,230.89,14.32881021]
[1759715305813,3.27032512,230.99,230.9,0.7]
[1759715306020,52.18,231.02,230.92,3.27032512]
[1759715306021,3.98032512,230.98,230.92,3.27032512]
[1759715306627,7.59974492,230.98,230.9,0.7]
[1759715306784,0.71,230.97,230.87,4.33141259]
[1759715306986,0.71,230.96,230.9,3.27032512]
[1759715307295,32.09,230.95,230.9,5.01597077]
[1759715308688,21.51,230.98,230.92,5.01597077]
[1759715308891,41.73747716,231.09,230.96,5.01597077]
[1759715308892,0.71,231.0,230.96,5.01597077]
[1759715309111,32.09,230.99,230.96,5.01597077]
[1759715309311,31.38,230.98,230.96,5.01597077]
[1759715310618,32.09,230.98,230.92,0.7]
[1759715310915,32.09,230.98,230.96,5.01597077]
[1759715311206,31.38,230.98,230.96,5.01597077]
[1759715313110,31.38,230.98,230.92,81.3]
[1759715313316,0.71,230.97,230.95,5.01597077]
[1759715313488,0.71,230.96,230.94,5.01597077]
[1759715313687,31.38,230.98,230.94,5.01597077]
[1759715313688,31.38,230.98,230.95,0.7]
[1759715313893,31.38,230.98,230.96,5.71597077]
[1759715314106,0.71,231.02,230.96,5.71597077]
[1759715314418,31.38,231.01,231.0,5.01597077]
[1759715314715,0.72,231.07,231.0,5.67597077]
[1759715314907,31.38,231.06,231.03,5.01597077]
[1759715315103,32.1,231.06,231.03,5.01597077]
[1759715315501,0.1,231.11,231.05,5.01597077]
[1759715315704,32.1,231.08,231.05,5.01597077]
[1759715316012,0.72,231.07,231.05,5.01597077]
[1759715316215,31.38,231.08,231.05,5.01597077]
[1759715316614,32.1,231.08,231.05,5.01597077]
[1759715317602,0.72,231.07,231.05,5.01597077]
[1759715317795,31.38,231.08,231.05,5.01597077]
[1759715318101,0.72,231.07,231.05,5.01597077]
[1759715318415,31.38,231.08,231.05,5.01597077]
[1759715318619,32.1,231.08,231.05,5.01597077]
[1759715319690,0.1,231.09,231.05,5.01597077]
[1759715319897,0.72,231.08,231.05,5.01597077]
[1759715320215,31.48,231.09,230.96,10.87647521]
[1759715320216,0.1,231.09,230.96,20.8]
[1759715320521,0.1,231.09,231.08,5.01597077]
[1759715320907,0.1,231.09,231.08,5.67597077]
[1759715323010,0.1,231.09,231.08,2.78427788]
[1759715323510,0.1,231.09,231.08,7.1117835]
[1759715324606,0.1,231.09,231.08,2.78427788]
[1759715325109,0.1,231.09,231.08,2.12427788]
[1759715325311,0.1,231.09,231.08,2.78427788]
[1759715326007,0.1,231.09,231.08,0.66]
[1759715326214,0.1,231.09,231.05,4.32795399]
[1759715326524,0.1,231.09,231.08,2.12427788]
[1759715326897,0.1,231.09,231.08,2.78427788]
[1759715327829,0.1,231.09,231.08,4.98750562]
[1759715328012,0.1,231.09,231.08,2.12427788]
[1759715331526,0.79,231.09,231.03,20.8]
[1759715331729,0.79,231.09,231.06,2.12427788]
[1759715332605,0.1,231.09,231.08,2.12427788]
[1759715332927,31.44,231.09,231.08,2.12427788]
[1759715333521,0.1,231.09,231.08,2.12427788]
[1759715333717,0.1,231.09,231.08,2.81427788]
[1759715334317,0.1,231.09,231.08,7.1417835]
[1759715338928,0.1,231.09,231.08,18.01825871]
[1759715340421,0.1,231.11,231.1,36.00360632]
[1759715340628,0.1,231.11,231.1,38.1278842]
[1759715340821,0.1,231.11,231.1,38.8178842]
[1759715343347,0.1,231.11,231.08,25.12732743]
[1759715343514,0.1,231.11,231.1,2.12427788]
[1759715344018,0.1,231.11,231.1,2.81427788]
[1759715344651,0.1,231.11,231.1,7.14140899]
[1759715344820,0.1,231.11,231.1,18.0178842]
[1759715347219,0.1,231.11,231.1,262.6378842]
[1759715347821,1e-08,231.11,231.1,262.6378842]
[1759715349130,0.1,231.15,231.1,262.6378842]
[1759715349131,0.1,231.15,231.11,10.87647521]
[1759715349320,0.1,231.15,231.14,13.00075309]
[1759715349739,0.1,231.15,231.14,13.69075309]
[1759715351149,0.1,231.15,231.14,18.01713536]
[1759715353553,0.1,231.15,231.14,15.89285748]
[1759715353739,0.1,231.15,231.14,18.01713536]
[1759715354643,0.1,231.15,231.14,98.61713536]
[1759715355049,0.1,231.15,231.14,95.80285748]
[1759715355242,0.1,231.15,231.14,87.05066015]
[1759715355434,0.79,231.15,231.14,87.05066015]
[1759715355758,0.1,231.15,231.14,87.05066015]
[1759715356351,0.1,231.15,231.14,20.14141324]
[1759715357235,0.1,231.15,231.14,17.32713536]
[1759715357426,0.1,231.15,231.14,18.01713536]
[1759715358630,0.1,231.15,231.14,20.14141324]
[1759715359056,0.1,231.15,231.14,15.89285748]
[1759715359349,0.1,231.15,231.14,18.01713536]
[1759715359663,0.1,231.15,231.14,17.32713536]
[1759715359967,0.8,231.15,231.14,2.12427788]
[1759715360460,0.1,231.15,231.14,6.45066015]
[1759715360632,0.1,231.15,231.14,18.01713536]
[1759715361851,0.1,231.15,231.14,17.32713536]
[1759715362043,0.8,231.15,231.14,6.45066015]
[1759715362262,0.1,231.15,231.14,6.45066015]
[1759715365367,0.1,231.15,231.14,7.14066015]
[1759715365754,0.1,231.15,231.14,6.45066015]
[1759715366470,0.1,231.15,231.14,7.14066015]
[1759715366670,0.1,231.15,231.14,96.49285748]
[1759715366878,0.1,231.15,231.14,98.61713536]
[1759715369270,0.1,231.15,231.14,97.85146843]
[1759715369668,0.1,231.15,231.14,17.25146843]
[1759715369879,0.1,231.15,231.14,22.68591223]
[1759715370252,0.1,231.16,231.15,10.87647521]
[1759715370558,0.1,231.16,231.15,12.92508616]
[1759715370768,0.1,231.18,231.17,36.00229603]
[1759715371072,0.1,231.18,231.17,37.36090698]
[1759715371382,0.1,231.18,231.17,38.05090698]
[1759715374651,0.1,231.24,231.17,38.05090698]
[1759715374652,0.1,231.24,231.18,10.87647521]
[1759715374852,0.1,231.24,231.23,12.23508616]
[1759715375578,0.1,231.24,231.23,17.23978451]
[1759715375874,0.1,231.24,231.23,16.55978451]
[1759715376073,0.77,231.24,231.23,16.55978451]
[1759715376270,0.1,231.24,231.23,16.55978451]
[1759715378168,0.77,231.24,231.23,1.35861095]
[1759715379164,0.77,231.24,231.21,10.87647521]
[1759715379365,0.67,231.23,231.21,10.87647521]
[1759715379580,0.67,231.22,231.21,1.35861095]
[1759715379975,0.67,231.22,231.18,10.87647521]
[1759715380169,0.1,231.24,231.21,1.35861095]
[1759715380569,0.67,231.23,231.22,1.35861095]
[1759715381269,0.1,231.24,231.22,1.35861095]
[1759715381474,0.1,231.24,231.2,15.13830395]
[1759715381475,0.1,231.24,231.23,1.35861095]
[1759715381676,0.1,231.24,231.23,81.95861095]
[1759715382068,0.77,231.24,231.23,81.95861095]
[1759715382673,0.1,231.24,231.23,86.2833093]
[1759715385177,0.77,231.24,231.23,86.2833093]
[1759715385375,0.77,231.24,231.23,81.95861095]
[1759715385689,0.77,231.24,231.23,1.35861095]
[1759715386772,6.45313144,231.24,231.13,4.32656946]
[1759715386987,1.35861095,231.2,231.12,4.32673929]
[1759715387196,0.67,231.19,231.15,1.35861095]
[1759715387391,1.35861095,231.21,231.13,20.8]
[1759715387392,0.67,231.18,231.16,1.35861095]
[1759715387573,0.66,231.17,231.16,1.35861095]
[1759715387771,0.66,231.17,231.11,0.71]
[1759715387968,0.66,231.17,231.08,0.71]
[1759715388175,0.66,231.17,231.12,1.35861095]
[1759715388370,1.35861095,231.18,231.09,15.20379357]
[1759715388371,0.66,231.16,231.09,15.20379357]
[1759715388582,0.66,231.15,231.13,1.35861095]
[1759715388891,0.66,231.14,231.13,1.35861095]
[1759715389092,0.66,231.14,231.09,15.20379357]
[1759715389302,0.66,231.14,231.13,1.35861095]
[1759715389670,0.66,231.14,231.1,1.35861095]
[1759715389990,0.66,231.13,231.11,1.35861095]
[1759715390193,0.66,231.15,231.12,1.35861095]
[1759715390497,0.66,231.14,231.12,1.35861095]
[1759715391193,0.66,231.14,231.11,1.35861095]
[1759715391578,0.66,231.13,231.1,1.35861095]
[1759715391785,0.66,231.12,231.09,1.35861095]
[1759715391978,0.66,231.11,231.08,1.35861095]
[1759715392183,1.35861095,231.14,231.08,1.35861095]
[1759715392184,0.66,231.1,231.08,1.35861095]
[1759715392776,0.66,231.09,231.02,13.0851913]
[1759715393070,0.66,231.08,231.03,1.35861095]
[1759715393274,0.66,231.07,231.03,1.35861095]
[1759715393778,0.66,231.07,231.01,0.71]
[1759715393779,20.8,231.11,231.0,12.83793391]
[1759715394083,20.8,231.11,230.98,1.35861095]
[1759715394084,1.35861095,231.04,230.98,1.35861095]
[1759715394296,0.66,231.03,230.98,1.35861095]
[1759715394495,1.35861095,231.06,230.99,1.35861095]
[1759715394678,0.66,231.03,230.99,1.35861095]
[1759715395394,0.66,231.03,230.99,5.68778673]
[1759715395895,21.46,231.1,231.02,1.35861095]
[1759715396098,20.8,231.1,231.05,1.35861095]
[1759715396398,20.8,231.1,231.02,0.71]
[1759715396399,0.66,231.09,231.04,1.35861095]
[1759715396592,0.66,231.08,231.04,1.35861095]
[1759715398498,1.35861095,231.1,231.04,5.68684862]
[1759715398799,0.66,231.11,231.05,1.35861095]
[1759715398978,0.66,231.11,231.05,2.06861095]
[1759715399585,0.66,231.11,231.05,6.39658105]
[1759715400202,0.66,231.11,231.06,1.35861095]
[1759715400395,0.66,231.11,231.06,2.06861095]
[1759715400685,1.35861095,231.13,231.07,0.71]
[1759715401717,0.66,231.14,231.07,5.03755423]
[1759715401899,31.22,231.15,231.08,2.06861095]
[1759715402099,33.23861095,231.16,231.08,2.06861095]
[1759715402281,2.01861095,231.15,231.08,1.35861095]
[1759715402490,31.22,231.16,231.07,1.35861095]
[1759715402491,2.01861095,231.14,231.07,1.35861095]
[1759715402682,2.01861095,231.13,231.06,1.35861095]
[1759715403095,0.66,231.13,231.07,1.35861095]
[1759715404208,2.01861095,231.17,231.11,1.35861095]
[1759715404383,1.35861095,231.15,231.04,15.20457239]
[1759715404580,2.01861095,231.14,231.08,1.35861095]
[1759715404896,31.22,231.16,231.05,1.35861095]
[1759715404897,1.35861095,231.12,231.05,1.35861095]
[1759715405089,0.66,231.11,231.05,1.35861095]
[1759715405406,1.35861095,231.1,231.04,1.35861095]
[1759715405587,1.35861095,231.08,231.01,2.06861095]
[1759715405782,2.01861095,231.07,231.01,10.87647521]
[1759715405985,0.66,231.07,231.01,16.56378809]
[1759715406195,0.66,231.07,231.02,1.35861095]
[1759715406388,0.66,231.07,231.02,0.71]
[1759715406587,0.66,231.07,231.03,1.35861095]
[1759715406807,2.01861095,231.09,231.03,2.06861095]
[1759715407489,2.01861095,231.09,231.03,0.71]
[1759715407692,6.34593107,231.09,231.02,5.68718994]
[1759715407895,31.61662825,231.13,231.06,1.35861095]
[1759715407896,31.22,231.11,231.06,1.35861095]
[1759715408399,31.22,231.11,231.06,2.06861095]
[1759715408597,31.88,231.11,231.06,2.06861095]
[1759715408781,31.22,231.11,231.06,1.35861095]
[1759715408986,0.66,231.1,231.06,1.35861095]
[1759715409181,31.22,231.11,231.0,10.87647521]
[1759715409182,0.66,231.09,231.0,10.87647521]
[1759715409387,0.66,231.09,231.02,1.35861095]
[1759715409388,0.66,231.08,231.02,1.35861095]
[1759715409604,33.23861095,231.11,231.04,1.35861095]
[1759715409794,31.22,231.11,231.06,1.35861095]
[1759715410101,0.66,231.1,231.02,0.71]
[1759715410490,0.66,231.1,231.05,1.35861095]
[1759715410690,0.66,231.09,231.05,1.35861095]
[1759715411099,31.22,231.12,231.07,1.35861095]
[1759715411290,31.88,231.12,231.07,1.35861095]
[1759715411505,31.88,231.12,231.07,2.06861095]
[1759715412093,0.66,231.16,231.11,1.35861095]
[1759715412290,13.09573306,231.24,231.04,31.67647521]
[1759715412291,0.66,231.19,231.15,1.35861095]
[1759715412485,31.22,231.18,231.15,1.35861095]
[1759715412685,0.66,231.19,231.16,1.35861095]
[1759715412886,31.22,231.21,231.17,1.35861095]
[1759715413103,0.66,231.2,231.16,1.35861095]
[1759715413312,31.22,231.21,231.16,2.06861095]
[1759715413482,31.88,231.21,231.16,2.06861095]
[1759715413682,31.88,231.21,231.16,6.39453125]
[1759715414289,0.66,231.2,231.16,1.35861095]
[1759715414490,0.66,231.19,231.15,1.35861095]
[1759715414732,0.66,231.18,231.15,1.35861095]
[1759715415185,36.90374591,231.21,231.15,1.35861095]
[1759715415388,0.66,231.2,231.15,1.35861095]
[1759715415606,0.66,231.19,231.15,1.35861095]
[1759715416410,0.66,231.19,231.16,1.35861095]
[1759715416608,31.22,231.21,231.16,1.35861095]
[1759715416810,31.88,231.21,231.16,1.35861095]
[1759715417001,31.88,231.21,231.17,1.35861095]
[1759715418797,2.04861095,231.2,231.14,1.35861095]
[1759715418995,1.35861095,231.2,231.14,1.35861095]
[1759715419290,2.04861095,231.19,231.13,1.35861095]
[1759715419490,0.69,231.19,231.13,1.35861095]
[1759715419698,0.69,231.19,231.14,1.35861095]
[1759715420022,31.22,231.21,231.14,1.35861095]
[1759715420207,0.69,231.19,231.14,1.35861095]
[1759715420399,0.69,231.18,231.14,1.35861095]
[1759715420716,2.04861095,231.17,231.08,0.69]
[1759715420895,31.2,231.16,231.11,1.35861095]
[1759715421099,0.69,231.15,231.1,1.35861095]
[1759715421494,32.55861095,231.16,231.1,1.35861095]
[1759715421719,0.69,231.15,231.1,1.35861095]
[1759715421914,32.55861095,231.16,231.07,5.68621671]
[1759715421915,1.35861095,231.13,231.07,5.68621671]
[1759715422395,2.04861095,231.14,231.07,5.68621671]
[1759715422596,2.04861095,231.14,231.08,1.35861095]
[1759715422815,31.2,231.16,231.1,1.35861095]
[1759715423390,31.2,231.16,231.09,0.69]
[1759715423391,1.35861095,231.15,231.09,2.04861095]
[1759715423709,2.04861095,231.14,231.08,1.35861095]
[1759715423911,2.04861095,231.14,231.07,5.68621671]
[1759715424122,0.69,231.14,231.08,1.35861095]
[1759715424423,0.69,231.14,231.09,5.68591201]
[1759715424622,1.35861095,231.15,231.08,1.35861095]
[1759715424817,0.69,231.14,231.08,1.35861095]
[1759715426121,1.35861095,231.11,231.04,2.04861095]
[1759715426332,1.35861095,231.1,231.04,81.29]
[1759715426521,1.35861095,231.1,231.04,85.61820843]
[1759715426705,33.22861095,231.11,231.04,86.97681938]
[1759715427515,33.22861095,231.11,231.04,86.28681938]
[1759715427718,33.22861095,231.11,231.05,0.69]
[1759715429013,1.35861095,231.08,231.02,0.69]
[1759715429213,1.35861095,231.08,231.0,12.92508616]
[1759715429214,1.35861095,231.07,231.0,12.92508616]
[1759715429528,0.69,231.08,231.01,2.04861095]
[1759715429734,0.69,231.08,231.02,1.35861095]
[1759715429911,1.35861095,231.1,231.03,2.04861095]
[1759715430226,1.35861095,231.1,231.04,0.69]
[1759715430734,2.04861095,231.1,231.04,0.69]
[1759715430928,1.35861095,231.09,231.02,6.37720786]
[1759715431233,2.12554647,231.09,231.02,7.14414338]
[1759715432421,2.12554647,231.09,231.02,6.45414338]
[1759715432614,2.81554647,231.1,231.03,2.81554647]
[1759715432830,2.12554647,231.13,231.06,2.12554647]
[1759715433040,0.69,231.15,231.08,2.12554647]
[1759715433236,31.18,231.14,231.09,2.78554647]
[1759715433415,2.12554647,231.16,231.1,0.66]
[1759715433737,33.99554647,231.17,231.1,2.78554647]
[1759715433934,31.87,231.17,231.1,2.78554647]
[1759715434141,31.18,231.17,231.11,2.78554647]
[1759715434823,31.18,231.17,231.12,4.32675666]
[1759715435025,31.18,231.17,231.13,0.66]
[1759715435838,0.69,231.2,231.14,2.78554647]
[1759715436035,31.18,231.19,231.14,0.66]
[1759715436335,31.87,231.19,231.14,0.66]
[1759715437120,31.87,231.19,231.14,4.98635275]
[1759715437324,31.18,231.19,231.14,4.98635275]
[1759715437634,31.18,231.19,231.15,0.66]
[1759715438027,31.18,231.19,231.13,4.32655025]
[1759715439535,20.8,231.22,231.16,2.12554647]
[1759715439734,31.16,231.19,231.16,2.78554647]
[1759715439911,31.16,231.19,231.17,0.66]
[1759715440120,20.9,231.24,231.19,10.87647521]
[1759715440121,0.1,231.24,231.19,10.87647521]
[1759715440339,0.1,231.24,231.22,2.12554647]
[1759715440543,0.1,231.24,231.21,2.12554647]
[1759715440848,0.1,231.24,231.2,0.66]
[1759715441032,0.1,231.24,231.2,2.78554647]
[1759715441344,0.1,231.24,231.22,4.32488539]
[1759715441728,0.1,231.24,231.21,2.12554647]
[1759715442130,0.1,231.24,231.21,2.78554647]
[1759715442732,0.1,231.24,231.21,7.11061456]
[1759715442926,0.1,231.24,231.22,0.66]
[1759715443126,0.1,231.24,231.21,7.11061456]
[1759715443345,0.1,231.24,231.22,2.12554647]
[1759715444646,0.79,231.24,231.19,2.12554647]
[1759715444828,0.69,231.23,231.19,2.12554647]
[1759715446042,0.1,231.24,231.2,17.32728119]
[1759715446243,0.1,231.24,231.22,2.12554647]
[1759715446830,0.1,231.24,231.21,2.78554647]
[1759715447025,0.1,231.24,231.2,2.12554647]
[1759715447242,0.1,231.24,231.17,23.54406058]
[1759715447243,0.69,231.23,231.19,2.12554647]
[1759715447454,2.22554647,231.24,231.18,2.12554647]
[1759715447634,0.71,231.23,231.18,2.12554647]
[1759715447838,0.71,231.23,231.19,2.12554647]
[1759715449243,2.12554647,231.23,231.17,2.12554647]
[1759715449556,0.71,231.22,231.17,2.12554647]
[1759715449729,0.71,231.22,231.16,4.32600348]
[1759715449934,0.71,231.22,231.17,2.12554647]
[1759715450135,0.71,231.22,231.17,2.80554647]
[1759715450928,0.71,231.22,231.18,2.12554647]
[1759715451953,0.71,231.21,231.16,2.12554647]
[1759715452133,2.12554647,231.22,231.16,2.80554647]
[1759715452134,2.83554647,231.22,231.16,2.80554647]
[1759715452334,0.71,231.22,231.17,2.12554647]
[1759715452536,0.71,231.22,231.17,2.80554647]
[1759715454851,0.71,231.21,231.16,2.12554647]
[1759715455041,2.12554647,231.22,231.16,2.12554647]
[1759715455243,2.12554647,231.22,231.16,2.80554647]
[1759715456054,2.83554647,231.21,231.13,0.68]
[1759715456276,2.12554647,231.17,231.11,2.80554647]
[1759715456560,2.83554647,231.19,231.13,2.12554647]
[1759715456926,2.83554647,231.19,231.13,2.80554647]
[1759715457655,0.1,231.24,231.13,6.45207317]
[1759715457862,2.12554647,231.21,231.15,2.12554647]
[1759715458160,23.63554647,231.22,231.14,0.68]
[1759715458345,2.12554647,231.21,231.15,2.12554647]
[1759715459345,2.12554647,231.2,231.14,2.80554647]
[1759715459554,2.12554647,231.2,231.14,0.68]
[1759715460061,2.12554647,231.2,231.14,2.80554647]
[1759715460362,2.12554647,231.2,231.15,0.68]
[1759715460561,2.12554647,231.2,231.16,0.68]
[1759715460865,20.8,231.22,231.16,0.68]
[1759715461150,0.1,231.24,231.19,2.12554647]
[1759715461650,0.1,231.24,231.2,0.68]
[1759715463257,0.1,231.24,231.19,4.32541875]
[1759715463567,5.13468606,231.24,231.19,0.68]
[1759715463737,2.12554647,231.2,231.14,0.68]
[1759715463941,2.12554647,231.19,231.14,81.28]
[1759715464142,2.12554647,231.19,231.15,0.68]
[1759715464459,0.71,231.21,231.16,0.68]
[1759715464460,2.12554647,231.21,231.16,0.68]
[1759715465437,2.83554647,231.21,231.16,0.68]
[1759715466164,7.1606692,231.21,231.16,0.68]
[1759715467055,5.03512273,231.21,231.16,0.68]
[1759715467256,2.83554647,231.21,231.16,0.68]
[1759715468661,33.93554647,231.21,231.16,0.68]
[1759715469070,2.12554647,231.19,231.12,6.45213589]
[1759715469252,2.12554647,231.14,231.08,0.68]
[1759715469559,2.12554647,231.14,231.05,4.32806751]
[1759715469560,2.12554647,231.13,231.06,2.80554647]
[1759715469760,2.12554647,231.13,231.06,2.12554647]
[1759715470074,2.12554647,231.13,231.07,0.68]
[1759715470444,2.12554647,231.11,231.04,0.68]
[1759715470757,2.12554647,231.08,231.02,0.68]
[1759715471060,20.8,231.11,231.05,2.12554647]
[1759715471268,2.12554647,231.16,231.09,2.12554647]
[1759715471469,31.1,231.11,231.1,2.80554647]
[1759715471684,31.1,231.11,231.08,2.12554647]
[1759715471972,31.1,231.11,231.09,0.68]
[1759715472345,31.1,231.11,231.08,2.12554647]
[1759715472563,31.1,231.11,231.08,2.80554647]